fUSD/lending_fUSD_20240518
["ID","MTS","AMOUNT","RATE_DAILY","PERIOD"]
[327347722,1716004239124,-306.051812,0.00031948,32]
[327347724,1716004239134,-333.25588851,0.00032,4]
[327347726,1716004239143,-1256.96639,0.00032135,2]
[327347728,1716004239153,-314.051812,0.00032148,30]
[327347730,1716004239162,-150.0,0.00032155,120]
[327347732,1716004239172,-150.0,0.00032444,2]
[327347734,1716004239181,-314.051812,0.00032448,30]
[327347736,1716004239191,-316.73066427,0.00032569,3]
[327347738,1716004239200,-314.051812,0.00032748,32]
[327347740,1716004239210,-160.0,0.000328,6]
[327347743,1716004239219,-150.0,0.00032877,13]
[327347745,1716004239229,-209.17862176,0.00032897,2]
[327347747,1716004239238,-5868.27204931,0.00032897,2]
[327347749,1716004239248,-157376.57424197,0.000329,30]
[327347751,1716004239257,-500.0,0.000329,5]
[327347753,1716004239266,-155.0,0.000329,4]
[327347755,1716004239276,-394.85109975,0.000329,4]
[327347757,1716004239285,-295.81148259,0.000329,2]
[327347759,1716004239294,-2759.56450673,0.000329,4]
[327347761,1716004239304,-24087.59534171,0.000329,5]
[327347763,1716004239315,-645.33591283,0.000329,7]
[327347765,1716004239324,-597.90793252,0.000329,2]
[327347767,1716004239334,-2000.0,0.000329,2]
[327347769,1716004239343,-500.0,0.000329,2]
[327347771,1716004239354,-500.0,0.000329,2]
[327347773,1716004239363,-500.0,0.000329,2]
[327347775,1716004239373,-500.0,0.000329,2]
[327347777,1716004239383,-500.0,0.000329,2]
[327347779,1716004239393,-500.0,0.000329,2]
[327347781,1716004239402,-13174.48387019,0.000329,30]
[327347783,1716004239413,-500.0,0.000329,2]
[327347785,1716004239423,-500.0,0.000329,2]
[327347787,1716004239433,-500.0,0.000329,2]
[327347789,1716004239444,-500.0,0.000329,2]
[327347791,1716004239454,-500.0,0.000329,2]
[327347793,1716004239464,-500.0,0.000329,2]
[327347795,1716004239474,-151.0,0.000329,7]
[327347797,1716004239483,-853.411858,0.000329,7]
[327347799,1716004239493,-853.411858,0.000329,7]
[327347801,1716004239503,-151.0,0.000329,7]
[327347803,1716004239513,-151.0,0.000329,7]
[327347805,1716004239522,-314.051812,0.00032948,32]
[327347807,1716004239532,-517.89053133,0.00033,120]
[327347809,1716004239541,-1157.748185,0.00033,2]
[327347811,1716004239550,-151.0,0.00033,7]
[327347813,1716004239561,-151.0,0.00033,7]
[327347815,1716004239571,-314.051812,0.00033148,32]
[327347817,1716004239580,-174.0,0.00033151,120]
[327347819,1716004239590,-630.94,0.00033151,120]
[327347821,1716004239600,-150.0,0.00033165,2]
[327347825,1716004239609,-156.2,0.00033198,2]
[327347828,1716004239619,-1686.78408081,0.00033345,5]
[327347831,1716004239629,-262.52,0.00033396,2]
[327347833,1716004239639,-388.05,0.00033396,2]
[327347835,1716004239648,-2751.46221818,0.00033444,2]
[327347837,1716004239658,-314.051812,0.00033448,32]
[327347839,1716004239668,-869.28,0.00033722,2]
[327347841,1716004239678,-869.28,0.00033722,2]
[327347843,1716004239687,-604.87,0.00033722,2]
[327347845,1716004239697,-314.051812,0.00033748,32]
[327347847,1716004239706,-300.35,0.00033859,2]
[327347849,1716004239716,-420.56,0.00033859,2]
[327347851,1716004239725,-351.66,0.00033859,2]
[327347853,1716004239736,-163.39,0.00033859,2]
[327347855,1716004239745,-151.58,0.00033859,2]
[327347857,1716004239755,-300.0,0.00033859,2]
[327347859,1716004239764,-420.56,0.00033859,2]
[327347861,1716004239774,-163.39,0.00033859,2]
[327347863,1716004239783,-351.66,0.00033859,2]
[327347865,1716004239792,-420.56,0.00033859,2]
[327347867,1716004239802,-351.66,0.00033859,2]
[327347869,1716004239811,-163.39,0.00033859,2]
[327347871,1716004239820,-163.39,0.00033859,2]
[327347873,1716004239829,-351.66,0.00033859,2]
[327347875,1716004239839,-420.56,0.00033859,2]
[327347877,1716004239852,-351.66,0.00033859,2]
[327347879,1716004239861,-420.56,0.00033859,2]
[327347881,1716004239872,-163.39,0.00033859,2]
[327347883,1716004239881,-842.07,0.00033859,2]
[327347885,1716004239891,-163.39,0.00033859,2]
[327347887,1716004239900,-700.26,0.00033859,2]
[327347889,1716004239909,-163.39,0.00033859,2]
[327347891,1716004239920,-163.39,0.00033859,2]
[327347893,1716004239930,-150.0,0.00033886,2]
[327347895,1716004239940,-314.051812,0.00033948,32]
[327347897,1716004239949,-160.92067864,0.0003413,2]
[327347899,1716004239959,-314.051812,0.00034148,32]
[327347901,1716004239969,-967.15749927,0.00034176,2]
[327347903,1716004239979,-314.051812,0.00034448,34]
[327347905,1716004239989,-156.62,0.00034475,2]
[327347907,1716004239998,-150.0,0.00034548,10]
[327347909,1716004240008,-150.0,0.00034607,2]
[327347911,1716004240017,-420.7,0.00034685,2]
[327347913,1716004240027,-424.06,0.00034685,2]
[327347915,1716004240042,-314.051812,0.00034748,32]
[327347917,1716004240052,-314.051812,0.00034948,34]
[327347919,1716004240062,-350.61414306,0.00034997,4]
[327347921,1716004240072,-155.16219798,0.00034998,4]
[327347923,1716004240081,-518.71871766,0.00034998,2]
[327347925,1716004240090,-29311.28890874,0.00035,4]
[327347927,1716004240100,-2229.69971431,0.00035,30]
[327347929,1716004240110,-314.051812,0.00035148,30]
[327347931,1716004240119,-150.0,0.00035328,2]
[327347933,1716004240129,-314.051812,0.00035448,30]
[327347935,1716004240139,-314.051812,0.00035748,30]
[327347937,1716004240149,-500.0,0.00035922,10]
[327347939,1716004240159,-4700.0,0.00035922,10]
[327347941,1716004240168,-900.0,0.00035922,10]
[327347943,1716004240177,-1400.0,0.00035922,10]
[327347945,1716004240186,-5000.0,0.00035922,10]
[327347947,1716004240195,-314.051812,0.00035948,36]
[327347949,1716004240206,-150.0,0.00036049,2]
[327347951,1716004240215,-314.051812,0.00036148,32]
[327347953,1716004240224,-314.051812,0.00036448,32]
[327347955,1716004240234,-500.0,0.0003647,10]
[327347957,1716004240244,-4700.0,0.0003647,10]
[327347959,1716004240253,-900.0,0.0003647,10]
[327347961,1716004240262,-1400.0,0.0003647,10]
[327347963,1716004240271,-5000.0,0.0003647,10]
[327347965,1716004240280,-156.2,0.00036506,2]
[327347967,1716004240289,-314.051812,0.00036748,32]
[327347969,1716004240300,-1686.78408081,0.00036767,9]
[327347971,1716004240309,-150.0,0.0003677,2]
[327347974,1716004240320,-314.051812,0.00036948,38]
[327347976,1716004240331,-500.0,0.00037018,10]
[327347978,1716004240340,-4700.0,0.00037018,10]
[327347980,1716004240350,-900.0,0.00037018,10]
[327347982,1716004240359,-1400.0,0.00037018,10]
[327347984,1716004240369,-5000.0,0.00037018,10]
[327347986,1716004240378,-160.92067864,0.00037023,2]
[327347988,1716004240389,-1256.96639,0.00037135,2]
[327347990,1716004240399,-314.051812,0.00037148,32]
[327347992,1716004240409,-179.81882921,0.00037393,2]
[327347994,1716004240419,-314.051812,0.00037448,34]
[327347996,1716004240429,-150.0,0.00037491,2]
[327347998,1716004240439,-500.0,0.00037566,10]
[327348000,1716004240448,-4700.0,0.00037566,10]
[327348002,1716004240458,-900.0,0.00037566,10]
[327348004,1716004240466,-1400.0,0.00037566,10]
[327348006,1716004240476,-5000.0,0.00037566,10]
[327348008,1716004240485,-2059.77144597,0.000377,4]
[327348010,1716004240494,-314.051812,0.00037748,34]
[327348012,1716004240505,-2751.46221818,0.00037934,2]
[327348014,1716004240514,-314.051812,0.00037948,40]
[327348016,1716004240524,-179.02812795,0.00038,120]
[327348018,1716004240533,-314.051812,0.00038148,36]
[327348020,1716004240543,-150.0,0.00038212,2]
[327348022,1716004240553,-182.06,0.00038356,2]
[327348024,1716004240563,-2000.0,0.000384,2]
[327348026,1716004240573,-314.051812,0.00038448,36]
[327348028,1716004240582,-164.07,0.00038575,2]
[327348030,1716004240592,-967.15749927,0.00038607,2]
[327348032,1716004240601,-500.0,0.00038662,10]
[327348034,1716004240611,-4700.0,0.00038662,10]
[327348036,1716004240620,-900.0,0.00038662,10]
[327348038,1716004240630,-1400.0,0.00038662,10]
[327348040,1716004240639,-5000.0,0.00038662,10]
[327348042,1716004240648,-314.051812,0.00038748,38]
[327348044,1716004240658,-885.15310528,0.000389,30]
[327348046,1716004240668,-150.0,0.00038933,2]
[327348048,1716004240678,-314.051812,0.00038948,42]
[327348050,1716004240688,-150000.0,0.00039,14]
[327348052,1716004240697,-151.0,0.00039,14]
[327348054,1716004240707,-853.411858,0.00039,14]
[327348056,1716004240717,-853.411858,0.00039,14]
[327348058,1716004240726,-151.0,0.00039,14]
[327348060,1716004240736,-151.0,0.00039,14]
[327348062,1716004240746,-314.051812,0.00039148,38]
[327348064,1716004240756,-2060.6860442,0.00039413,120]
[327348066,1716004240765,-151.0,0.00039413,14]
[327348068,1716004240775,-151.0,0.00039413,14]
[327348070,1716004240784,-151.0,0.00039413,14]
[327348072,1716004240794,-314.051812,0.00039448,40]
[327348074,1716004240803,-4795.0,0.00039463,7]
[327348076,1716004240817,-150.0,0.00039654,2]
[327348078,1716004240826,-314.051812,0.00039748,40]
[327348080,1716004240836,-151.0,0.00039748,14]
[327348082,1716004240845,-151.0,0.00039748,14]
[327348084,1716004240854,-500.0,0.00039758,10]
[327348086,1716004240863,-4700.0,0.00039758,10]
[327348088,1716004240872,-900.0,0.00039758,10]
[327348090,1716004240881,-1400.0,0.00039758,10]
[327348092,1716004240890,-5000.0,0.00039758,10]
[327348094,1716004240899,-151.0,0.00039758,14]
[327348096,1716004240908,-151.0,0.00039758,14]
[327348098,1716004240917,-151.0,0.00039758,14]
[327348100,1716004240926,-151.0,0.00039758,14]
[327348102,1716004240936,-224.909455,0.00039758,14]
[327348104,1716004240945,-153.401548,0.00039758,14]
[327348106,1716004240955,-151.482256,0.00039758,14]
[327348108,1716004240964,-151.0,0.00039758,14]
[327348110,1716004240973,-151.0,0.00039758,14]
[327348112,1716004240982,-151.0,0.00039758,14]
[327348114,1716004240991,-151.0,0.00039758,14]
[327348116,1716004241000,-248.33137,0.00039758,14]
[327348118,1716004241010,-151.0,0.00039758,14]
[327348120,1716004241019,-151.0,0.00039758,14]
[327348122,1716004241028,-151.0,0.00039758,14]
[327348124,1716004241043,-163.011796,0.00039758,14]
[327348126,1716004241052,-163.011796,0.00039758,14]
[327348128,1716004241061,-156.2,0.00039815,2]
[327348130,1716004241071,-960.05463042,0.0003984,10]
[327348144,1716004241193,-262.52,0.0003987,2]
[327348146,1716004241202,-388.05,0.0003987,2]
[327348148,1716004241211,-160.92067864,0.00039915,2]
[327348150,1716004241221,-314.051812,0.00039948,44]
[327348152,1716004241230,-3579.53252172,0.0004,20]
[327348154,1716004241239,-698.96771964,0.0004,4]
[327348156,1716004241248,-155.0,0.0004,4]
[327348158,1716004241257,-33292.76901658,0.0004,4]
[327348160,1716004241266,-290.28168513,0.0004,2]
[327348162,1716004241275,-2711.55365022,0.0004,4]
[327348164,1716004241284,-360.71654974,0.0004,120]
[327348166,1716004241294,-10697.42901037,0.0004,120]
[327348168,1716004241303,-2282.32004428,0.0004,120]
[327348170,1716004241314,-489.92917743,0.0004,120]
[327348172,1716004241323,-173.40067668,0.0004,30]
[327348174,1716004241333,-326.0,0.0004,30]
[327348176,1716004241342,-790.34,0.0004,120]
[327348178,1716004241351,-288.53186192,0.0004,120]
[327348180,1716004241361,-379.19958869,0.0004,30]
[327348182,1716004241370,-216.983149,0.0004,14]
[327348184,1716004241379,-151.0,0.0004,14]
[327348186,1716004241388,-166.478055,0.0004,14]
[327348188,1716004241398,-151.0,0.0004,14]
[327348190,1716004241407,-151.0,0.0004,14]
[327348192,1716004241416,-151.0,0.0004,7]
[327348194,1716004241425,-151.0,0.0004,14]
[327348196,1716004241434,-151.0,0.0004,14]
[327348198,1716004241443,-151.0,0.0004,14]
[327348200,1716004241453,-179.424586,0.0004,14]
[327348202,1716004241462,-151.0,0.0004,14]
[327348204,1716004241471,-151.0,0.0004,14]
[327348206,1716004241480,-392.36635111,0.0004001,30]
[327348208,1716004241489,-314.051812,0.00040148,40]
[327348210,1716004241499,-1686.78408081,0.0004019,14]
[327348212,1716004241509,-150.0,0.00040375,2]
[327348214,1716004241519,-314.051812,0.00040448,42]
[327348216,1716004241528,-459.54659753,0.0004048,60]
[327348218,1716004241537,-115780.262771,0.00040581,7]
[327348220,1716004241546,-66233.7952887,0.00040581,7]
[327348222,1716004241556,-151.0,0.00040581,14]
[327348225,1716004241568,-151.0,0.00040581,14]
[327348227,1716004241577,-159.22325878,0.0004068,2]
[327348229,1716004241589,-314.051812,0.00040748,42]
[327348231,1716004241597,-500.0,0.00040854,10]
[327348233,1716004241606,-4700.0,0.00040854,10]
[327348235,1716004241616,-900.0,0.00040854,10]
[327348237,1716004241625,-1400.0,0.00040854,10]
[327348239,1716004241634,-5000.0,0.00040854,10]
[327348241,1716004241644,-314.051812,0.00040948,46]
[327348243,1716004241653,-151.0,0.0004097,14]
[327348245,1716004241662,-853.411858,0.0004097,14]
[327348247,1716004241671,-853.411858,0.0004097,14]
[327348249,1716004241680,-151.0,0.0004097,14]
[327348251,1716004241689,-12352.62180931,0.0004097,5]
[327348253,1716004241698,-168.81992441,0.00041,60]
[327348255,1716004241707,-17999.76,0.00041,30]
[327348257,1716004241716,-279.09661,0.00041,14]
[327348259,1716004241726,-151.0,0.00041,14]
[327348261,1716004241735,-151.0,0.00041,14]
[327348263,1716004241744,-151.0,0.00041,14]
[327348265,1716004241753,-151.0,0.00041,14]
[327348267,1716004241763,-151.0,0.00041,14]
[327348269,1716004241772,-151.0,0.00041,14]
[327348271,1716004241781,-151.0,0.00041,14]
[327348273,1716004241790,-151.0,0.00041,14]
[327348275,1716004241801,-151.0,0.00041,14]
[327348277,1716004241810,-151.0,0.00041,14]
[327348279,1716004241821,-151.0,0.00041,14]
[327348281,1716004241830,-151.0,0.00041,14]
[327348283,1716004241839,-163.011796,0.00041,14]
[327348285,1716004241848,-163.011796,0.00041,14]
[327348287,1716004241857,-151.0,0.00041,14]
[327348289,1716004241865,-151.0,0.00041,14]
[327348291,1716004241875,-2000.0,0.00041095,30]
[327348292,1716004241884,-2000.0,0.00041095,30]
[327348293,1716004241894,-2000.0,0.00041095,30]
[327348294,1716004241903,-2000.0,0.00041095,30]
[327348295,1716004241912,-2000.0,0.00041095,30]
[327348296,1716004241922,-2000.0,0.00041095,30]
[327348297,1716004241931,-2000.0,0.00041095,30]
[327348298,1716004241940,-895.60893202,0.00041095,30]
[327348299,1716004241950,-151.0,0.00041095,14]
[327348300,1716004241959,-151.0,0.00041095,14]
[327348301,1716004241969,-1000.0,0.00041095,30]
[327348302,1716004241978,-1000.0,0.00041095,30]
[327348304,1716004241986,-1037.15094732,0.00041095,30]
[327348305,1716004241996,-157.0,0.00041096,2]
[327348307,1716004242005,-150.0,0.00041096,2]
[327348309,1716004242014,-314.051812,0.00041148,42]
[327348311,1716004242023,-150.0,0.000413,11]
[327348314,1716004242034,-314.051812,0.00041448,44]
[327348315,1716004242045,-301.87985111,0.000415,60]
[327348317,1716004242055,-314.051812,0.00041748,44]
[327348319,1716004242064,-150.0,0.000418,11]
[327348321,1716004242073,-419.16225513,0.000419,111]
[327348323,1716004242083,-314.051812,0.00041948,48]
[327348325,1716004242091,-151.0,0.0004195,14]
[327348327,1716004242101,-500.0,0.0004195,30]
[327348329,1716004242110,-4700.0,0.0004195,30]
[327348331,1716004242120,-900.0,0.0004195,30]
[327348333,1716004242130,-1400.0,0.0004195,30]
[327348335,1716004242139,-5000.0,0.0004195,30]
[327348337,1716004242148,-27266.57109506,0.00042,10]
[327348339,1716004242157,-156.06875008,0.00042,120]
[327348341,1716004242166,-39583.56526864,0.00042,30]
[327348343,1716004242176,-490.12307429,0.00042,120]
[327348346,1716004242185,-151.0,0.00042,14]
[327348348,1716004242195,-151.0,0.00042,14]
[327348350,1716004242204,-151.0,0.00042,14]
[327348351,1716004242213,-151.0,0.00042,14]
[327348353,1716004242222,-151.0,0.00042,14]
[327348356,1716004242231,-151.0,0.00042,14]
[327348357,1716004242240,-314.051812,0.00042148,46]
[327348359,1716004242250,-150.0,0.000423,11]
[327348362,1716004242259,-2751.46221818,0.00042425,2]
[327348363,1716004242269,-314.051812,0.00042448,48]
[327348364,1716004242278,-500.0,0.00042498,30]
[327348365,1716004242288,-4700.0,0.00042498,30]
[327348366,1716004242297,-900.0,0.00042498,30]
[327348367,1716004242306,-1400.0,0.00042498,30]
[327348368,1716004242317,-5000.0,0.00042498,30]
[327348369,1716004242326,-2725.0,0.000427,92]
[327348370,1716004242335,-314.051812,0.00042748,48]
[327348371,1716004242345,-150.0,0.000428,11]
[327348372,1716004242354,-160.92067864,0.00042808,2]
[327348373,1716004242363,-314.051812,0.00042948,50]
[327348374,1716004242373,-159369.17200941,0.00043,60]
[327348375,1716004242382,-307.34086525,0.00043,120]
[327348376,1716004242391,-472.23678054,0.00043,30]
[327348378,1716004242400,-151.0,0.00043,2]
[327348379,1716004242410,-151.0,0.00043,14]
[327348381,1716004242419,-853.411858,0.00043,14]
[327348382,1716004242428,-853.411858,0.00043,14]
[327348383,1716004242437,-151.0,0.00043,14]
[327348384,1716004242446,-967.15749927,0.00043038,2]
[327348385,1716004242455,-500.0,0.00043046,30]
[327348386,1716004242465,-4700.0,0.00043046,30]
[327348387,1716004242474,-900.0,0.00043046,30]
[327348388,1716004242483,-1400.0,0.00043046,30]
[327348389,1716004242492,-5000.0,0.00043046,30]
[327348390,1716004242501,-237.597027,0.00043046,14]
[327348391,1716004242510,-151.0,0.00043046,14]
[327348393,1716004242520,-151.0,0.00043046,14]
[327348395,1716004242530,-151.0,0.00043046,14]
[327348397,1716004242539,-151.0,0.00043046,14]
[327348399,1716004242548,-151.0,0.00043046,14]
[327348400,1716004242558,-151.0,0.00043046,14]
[327348402,1716004242567,-151.0,0.00043046,14]
[327348403,1716004242576,-151.0,0.00043046,14]
[327348405,1716004242586,-168.037798,0.00043046,14]
[327348407,1716004242594,-151.0,0.00043046,14]
[327348409,1716004242604,-151.0,0.00043046,14]
[327348411,1716004242613,-151.0,0.00043046,14]
[327348414,1716004242622,-151.0,0.00043046,14]
[327348415,1716004242632,-151.0,0.00043046,14]
[327348418,1716004242641,-254.359651,0.00043046,14]
[327348421,1716004242651,-163.011796,0.00043046,14]
[327348424,1716004242660,-163.011796,0.00043046,14]
[327348427,1716004242669,-151.0,0.00043046,14]
[327348430,1716004242678,-151.0,0.00043046,14]
[327348432,1716004242688,-156.2,0.00043124,2]
[327348436,1716004242697,-314.051812,0.00043148,50]
[327348437,1716004242706,-150.0,0.000433,11]
[327348440,1716004242716,-314.051812,0.00043448,50]
[327348442,1716004242725,-500.0,0.00043594,30]
[327348443,1716004242734,-4700.0,0.00043594,30]
[327348445,1716004242743,-900.0,0.00043594,30]
[327348447,1716004242752,-1400.0,0.00043594,30]
[327348449,1716004242762,-5000.0,0.00043594,30]
[327348451,1716004242771,-778.29249238,0.000436,7]
[327348453,1716004242780,-1686.78408081,0.00043612,18]
[327348455,1716004242789,-12025.0,0.00043616,30]
[327348457,1716004242798,-151.0,0.00043621,2]
[327348460,1716004242808,-635.53381204,0.00043698,120]
[327348462,1716004242820,-500.0,0.00043698,120]
[327348463,1716004242830,-314.051812,0.00043748,52]
[327348464,1716004242839,-163.39,0.00043781,2]
[327348465,1716004242848,-301.23,0.00043781,2]
[327348466,1716004242857,-150.0,0.00043781,2]
[327348467,1716004242867,-1051.86,0.00043781,2]
[327348468,1716004242876,-1107.0,0.000438,2]
[327348469,1716004242885,-150.0,0.000438,12]
[327348470,1716004242894,-200.0,0.00043836,25]
[327348471,1716004242904,-200.0,0.00043836,25]
[327348472,1716004242913,-1000.0,0.00043836,50]
[327348473,1716004242938,-1000.0,0.00043836,50]
[327348474,1716004242948,-1000.0,0.00043836,50]
[327348475,1716004242958,-500.0,0.00043836,14]
[327348476,1716004242967,-200.07719303,0.0004392,60]
[327348477,1716004242977,-314.051812,0.00043948,52]
[327348478,1716004242986,-150.0,0.0004395,2]
[327348479,1716004242996,-500.0,0.00043972,120]
[327348480,1716004243005,-255.957753,0.00044,14]
[327348481,1716004243015,-151.0,0.00044,14]
[327348482,1716004243025,-151.0,0.00044,14]
[327348483,1716004243040,-151.0,0.00044,14]
[327348484,1716004243052,-151.0,0.00044,14]
[327348485,1716004243061,-1661.380353,0.00044,44]
[327348486,1716004243071,-200.0,0.00044015,120]
[327348487,1716004243080,-150.0,0.00044045,2]
[327348488,1716004243091,-150.0,0.00044072,2]
[327348489,1716004243100,-500.0,0.00044142,30]
[327348490,1716004243109,-4700.0,0.00044142,30]
[327348491,1716004243122,-900.0,0.00044142,30]
[327348492,1716004243132,-1400.0,0.00044142,30]
[327348493,1716004243141,-5000.0,0.00044142,30]
[327348494,1716004243151,-314.051812,0.00044148,52]
[327348495,1716004243160,-150.0,0.00044154,2]
[327348496,1716004243170,-200.0,0.00044172,120]
[327348497,1716004243179,-150.0,0.00044198,2]
[327348498,1716004243188,-150.0,0.00044203,2]
[327348499,1716004243197,-916.0,0.00044208,28]
[327348500,1716004243207,-200.40347205,0.00044246,120]
[327348501,1716004243218,-150.0,0.00044254,2]
[327348502,1716004243227,-1000.0,0.00044291,120]
[327348503,1716004243237,-30000.00000099,0.000443,10]
[327348504,1716004243246,-150.0,0.000443,12]
[327348505,1716004243256,-150.0,0.00044301,2]
[327348506,1716004243265,-150.0,0.00044312,2]
[327348507,1716004243275,-150.0,0.0004432,2]
[327348508,1716004243284,-150.0,0.00044333,2]
[327348509,1716004243293,-150.0,0.00044341,2]
[327348510,1716004243303,-150.0,0.00044365,2]
[327348511,1716004243314,-269.0,0.00044384,30]
[327348512,1716004243324,-174.0,0.00044384,120]
[327348513,1716004243333,-630.94,0.00044384,120]
[327348514,1716004243342,-150.0,0.0004442,2]
[327348515,1716004243351,-150.0,0.0004443,2]
[327348516,1716004243360,-150.0,0.00044432,2]
[327348517,1716004243369,-150.0,0.00044442,2]
[327348518,1716004243379,-314.051812,0.00044448,54]
[327348519,1716004243388,-150.0,0.00044493,2]
[327348520,1716004243397,-150.0,0.00044502,2]
[327348521,1716004243407,-150.0,0.00044547,2]
[327348522,1716004243416,-150.0,0.0004455,2]
[327348524,1716004243425,-150.0,0.00044554,2]
[327348526,1716004243434,-150.0,0.00044556,2]
[327348527,1716004243444,-150.0,0.00044558,2]
[327348528,1716004243453,-150.0,0.00044569,2]
[327348529,1716004243462,-150.0,0.0004459,2]
[327348530,1716004243471,-185.57992379,0.0004459,2]
[327348531,1716004243480,-150.0,0.00044609,2]
[327348532,1716004243489,-200.0,0.00044615,120]
[327348533,1716004243499,-150.0,0.00044654,2]
[327348534,1716004243508,-150.0,0.00044669,2]
[327348535,1716004243517,-150.0,0.0004468,2]
[327348536,1716004243526,-150.0,0.00044682,2]
[327348537,1716004243536,-196.67413658,0.0004469,30]
[327348538,1716004243545,-1858.7311075,0.0004469,30]
[327348539,1716004243554,-223.78090479,0.0004469,30]
[327348540,1716004243564,-331.99535304,0.0004469,30]
[327348541,1716004243574,-2955.72405942,0.0004469,30]
[327348542,1716004243583,-150.0,0.00044714,2]
[327348543,1716004243592,-200.0,0.00044719,120]
[327348544,1716004243602,-156.62,0.00044726,2]
[327348545,1716004243611,-314.051812,0.00044748,54]
[327348546,1716004243621,-150.0,0.00044773,2]
[327348547,1716004243631,-150.0,0.00044775,2]
[327348548,1716004243640,-150.0,0.00044779,2]
[327348549,1716004243650,-150.0,0.00044782,2]
[327348550,1716004243659,-150.0,0.00044785,2]
[327348551,1716004243668,-150.0,0.00044791,2]
[327348552,1716004243678,-1000.0,0.00044799,120]
[327348553,1716004243687,-150.0,0.000448,2]
[327348554,1716004243697,-150.0,0.000448,12]
[327348555,1716004243706,-150.0,0.00044807,2]
[327348556,1716004243805,-150.0,0.00044816,2]
[327348557,1716004243825,-150.0,0.00044827,2]
[327348558,1716004243834,-150.0,0.00044847,2]
[327348559,1716004243843,-797.55205176,0.00044887,120]
[327348560,1716004243852,-150.0,0.00044897,2]
[327348561,1716004243861,-150.0,0.00044899,2]
[327348562,1716004243871,-150.0,0.00044908,2]
[327348563,1716004243880,-150.0,0.0004492,2]
[327348564,1716004243889,-150.0,0.0004494,2]
[327348565,1716004243898,-150.0,0.00044957,2]
[327348566,1716004243908,-5000.0,0.00044986,4]
[327348567,1716004243917,-150.0,0.00044987,2]
[327348568,1716004243926,-150.0,0.00044987,2]
[327348569,1716004243935,-150.0,0.00044989,2]
[327348570,1716004243944,-210.85052407,0.00045,2]
[327348571,1716004243953,-2661.43406406,0.00045,30]
[327348572,1716004243963,-2500.0,0.00045,120]
[327348573,1716004243972,-7740.99074794,0.00045,120]
[327348574,1716004243981,-200.0,0.00045,120]
[327348575,1716004243990,-409.9579361,0.00045,30]
[327348576,1716004243999,-1000.0,0.00045,2]
[327348577,1716004244008,-350.0,0.00045,120]
[327348578,1716004244017,-155.19897466,0.00045,120]
[327348579,1716004244026,-150.0,0.00045014,2]
[327348580,1716004244037,-150.0,0.00045022,2]
[327348581,1716004244047,-150.0,0.00045054,2]
[327348582,1716004244057,-150.0,0.00045065,2]
[327348583,1716004244068,-150.0,0.00045096,2]
[327348584,1716004244077,-150.0,0.00045101,2]
[327348585,1716004244086,-500.0,0.00045147,30]
[327348586,1716004244096,-150.0,0.00045147,2]
[327348587,1716004244105,-314.051812,0.00045148,54]